[Event "Charlotte IM-C MLK 2022"]
[Site "Charlotte"]
[Date "2022.01.14"]
[Round "1.1"]
[White "Vanapalli, Vishnu"]
[Black "Fishbein, Mitch"]
[Result "1-0"]
[ECO "C54"]
[WhiteElo "2101"]
[BlackElo "2129"]
[Annotator "NA"]
[PlyCount "67"]
[EventDate "2022.01.13"]
[EventType "tourn"]
[EventCountry "USA"]
[SourceTitle "playchess.com"]
[Source "ChessBase"]
[SourceQuality "1"]
[TimeControl "5400+30"]

1. e4 {[%emt 0:00:46]} e5 {[%emt 0:00:06]} 2. Nf3 {[%emt 0:00:17]} Nc6 {[%emt 0:00:08]} 3. Bc4 {[%emt 0:00:16]} Bc5 {[%emt 0:00:46]} 4. c3 {[%emt 0:00:14]} Nf6 {[%emt 0:00:48]} 5. d3 {[%emt 0:00:13]} O-O {[%emt 0:00:20]} 6. O-O {[%emt 0:00:13]} d5 {[%emt 0:00:38]} 7. exd5 {[%emt 0:00:13]} Nxd5 {[%emt 0:00:08]} 8. a4 {[%emt 0:00:18]} Bf5 {[%emt 0:07:00]} 9. Re1 {[%emt 0:07:37]} Nb6 {[%emt 0:41:48]} 10. Bb5 {[%emt 0:11:55]} Qd5 {[%emt 0:14:53]} 11. Bxc6 {[%emt 0:14:45]} Qxc6 $16 {[%emt 0:01:17]} 12. Nxe5 {[%emt 0:01:03]} Qf6 {[%emt 0:04:02]} 13. Nd2 {[%emt 0:05:15]} Bd6 {[%emt 0:02:07]} 14. Ndf3 {[%emt 0:01:16]} h6 {[%emt 0:01:54]} 15. d4 {[%emt 0:08:15]} Rfe8 {[%emt 0:01:00]} 16. a5 {[%emt 0:10:28]} Nd7 {[%emt 0:03:03]} 17. Bf4 {[%emt 0:02:46]} Nf8 {[%emt 0:03:57]} 18. Bg3 {[%emt 0:01:15]} Rad8 {[%emt 0:01:28]} 19. a6 {[%emt 0:07:36]} b6 {[%emt 0:02:12]} 20. Nc6 {[%emt 0:03:20]} Rxe1+ {[%emt 0:03:27]} 21. Qxe1 {[%emt 0:01:38]} Bxg3 {[%emt 0:02:38]} 22. Nxd8 {[%emt 0:01:20]} Bf4 {[%emt 0:00:51]} 23. Nb7 {[%emt 0:05:48]} Ne6 {[%emt 0:02:20]} 24. d5 {[%emt 0:03:15]} Ng5 {[%emt 0:01:32]} 25. Nxg5 {[%emt 0:03:46]} hxg5 {[%emt 0:00:16]} 26. Qe8+ {[%emt 0:01:37]} Kh7 {[%emt 0:00:04]} 27. Nd8 {[%emt 0:00:41]} Bg6 {[%emt 0:01:35]} 28. Re1 {[%emt 0:02:00]} Qf5 {[%emt 0:01:01]} 29. Nc6 {[%emt 0:01:36]} f6 {[%emt 0:02:41]} 30. Qe6 {[%emt 0:01:07]} Bd6 {[%emt 0:00:53]} 31. Qxf5 {[%emt 0:00:28]} Bxf5 {[%emt 0:00:03]} 32. Nxa7 {[%emt 0:00:12]} Bd3 {[%emt 0:00:09]} 33. Nb5 {[%emt 0:00:31]} Bc4 {[%emt 0:00:12]} 34. Nxd6 {[%emt 0:05:30]} 1-0

[Event "Charlotte IM-C MLK 2022"]
[Site "Charlotte"]
[Date "2022.01.14"]
[Round "1.2"]
[White "Sethuraman, Sandeep"]
[Black "Adewumi, Tanitoluwa"]
[Result "0-1"]
[ECO "E32"]
[WhiteElo "2361"]
[BlackElo "2136"]
[Annotator "ChessBase"]
[PlyCount "84"]
[EventDate "2022.01.13"]
[EventType "tourn"]
[EventCountry "USA"]
[SourceTitle "playchess.com"]
[Source "ChessBase"]
[SourceQuality "1"]
[TimeControl "5400+30"]

1. d4 {[%emt 0:00:02]} Nf6 {[%emt 0:00:09]} 2. c4 {[%emt 0:00:03]} e6 {[%emt 0:00:04]} 3. Nc3 {[%emt 0:00:05]} Bb4 {[%emt 0:00:06]} 4. Qc2 {[%emt 0:00:05]} O-O {[%emt 0:00:05]} 5. Nf3 {[%emt 0:00:06]} d6 {[%emt 0:00:25]} 6. Bd2 {[%emt 0:01:16]} b6 {[%emt 0:01:33]} 7. e4 {[%emt 0:08:22]} c5 {[%emt 0:02:17]} 8. a3 {[%emt 0:08:30]} Ba5 {[%emt 0:01:06]} 9. Bd3 {[%emt 0:04:30]} Nc6 {[%emt 0:04:14]} 10. d5 {[%emt 0:09:54]} Ne7 {[%emt 0:03:17]} 11. O-O {[%emt 0:00:11]} Bxc3 {[%emt 0:00:10]} 12. Bxc3 {[%emt 0:01:10]} e5 {[%emt 0:01:40]} 13. Nh4 {[%emt 0:17:32]} Nh5 {[%emt 0:01:50]} 14. g3 {[%emt 0:02:23]} Bh3 {[%emt 0:02:07]} 15. Rfe1 {[%emt 0:03:46]} g6 {[%emt 0:03:19]} 16. Qd2 {[%emt 0:05:25]} Qd7 {[%emt 0:03:12]} 17. Qg5 {[%emt 0:05:09]} f6 {[%emt 0:05:27]} 18. Qh6 {[%emt 0:00:12]} Ng7 {[%emt 0:00:57]} 19. Qe3 {[%emt 0:03:45]} g5 {[%emt 0:00:15]} 20. Nf3 {[%emt 0:03:30]} h6 {[%emt 0:02:52]} 21. Kh1 {[%emt 0:03:16]} f5 {[%emt 0:01:39]} 22. Ng1 {[%emt 0:01:03]} Bg4 {[%emt 0:01:02]} 23. exf5 {[%emt 0:01:27]} Bxf5 {[%emt 0:00:30]} 24. Bf1 {[%emt 0:01:01]} Bh7 {[%emt 0:02:20]} 25. Bh3 {[%emt 0:03:59]} g4 {[%emt 0:01:02]} 26. Bg2 {[%emt 0:00:03]} Nef5 {[%emt 0:00:10]} 27. Qd2 {[%emt 0:00:33]} Rf6 {[%emt 0:00:41]} 28. f4 {[%emt 0:04:33]} gxf3 {[%emt 0:00:03]} 29. Nxf3 {[%emt 0:00:10]} Raf8 {[%emt 0:00:41]} 30. Nxe5 {[%emt 0:03:00]} dxe5 {[%emt 0:00:13]} 31. Bxe5 {[%emt 0:00:07]} R6f7 {[%emt 0:00:55]} 32. d6 {[%emt 0:02:05]} Bg6 {[%emt 0:03:34]} 33. Bd5 {[%emt 0:02:31]} Kh7 {[%emt 0:00:23]} 34. Bxf7 {[%emt 0:00:43]} Rxf7 {[%emt 0:00:43]} 35. Rad1 {[%emt 0:01:10]} Ne6 {[%emt 0:00:12]} 36. Qd5 {[%emt 0:01:23]} Bh5 {[%emt 0:02:40]} 37. Rd3 {[%emt 0:01:57]} Bg4 {[%emt 0:01:30]} 38. Qe4 {[%emt 0:00:56]} h5 {[%emt 0:02:07]} 39. Rf1 {[%emt 0:01:23]} Ng5 {[%emt 0:00:24]} 40. Qe1 {[%emt 0:01:23]} Qe6 {[%emt 0:02:12]} 41. b3 {[%emt 0:01:42]} Nd4 {[%emt 0:01:12]} 42. Rxf7+ {[%emt 0:00:38]} Qxf7 {[%emt 0:01:36]} 0-1

[Event "Charlotte IM-C MLK 2022"]
[Site "Charlotte"]
[Date "2022.01.14"]
[Round "1.3"]
[White "Ngo, Bach"]
[Black "Wu, Derek"]
[Result "1/2-1/2"]
[ECO "D00"]
[WhiteElo "2300"]
[BlackElo "2158"]
[Annotator "ChessBase"]
[PlyCount "183"]
[EventDate "2022.01.13"]
[EventType "tourn"]
[EventCountry "USA"]
[SourceTitle "playchess.com"]
[Source "ChessBase"]
[SourceQuality "1"]
[TimeControl "5400+30"]

1. d4 {[%emt 0:00:04]} Nf6 {[%emt 0:00:05]} 2. Nf3 {[%emt 0:00:06]} g6 {[%emt 0:00:06]} 3. Nc3 {[%emt 0:00:05]} d5 {[%emt 0:00:11]} 4. Bf4 {[%emt 0:00:09]} Bg7 {[%emt 0:00:08]} 5. Nb5 {[%emt 0:00:06]} Na6 {[%emt 0:00:07]} 6. e3 {[%emt 0:00:08]} O-O {[%emt 0:00:25]} 7. h3 {[%emt 0:00:07]} Ne4 {[%emt 0:01:02]} 8. c3 {[%emt 0:00:41]} c6 {[%emt 0:00:32]} 9. Na3 {[%emt 0:00:11]} Qb6 {[%emt 0:00:51]} 10. Qb3 {[%emt 0:03:41]} f6 {[%emt 0:01:02]} 11. Be2 {[%emt 0:01:12]} e5 {[%emt 0:00:35]} 12. Bh2 {[%emt 0:00:21]} exd4 {[%emt 0:01:00]} 13. exd4 {[%emt 0:02:08]} Re8 {[%emt 0:00:37]} 14. O-O {[%emt 0:25:38]} Nd2 {[%emt 0:00:49]} 15. Qxb6 {[%emt 0:00:37]} axb6 {[%emt 0:04:34]} 16. Rfe1 {[%emt 0:00:53]} Nxf3+ {[%emt 0:01:42]} 17. Bxf3 {[%emt 0:00:09]} Bf5 {[%emt 0:02:24]} 18. Bg4 {[%emt 0:11:46]} Bxg4 {[%emt 0:03:06]} 19. hxg4 {[%emt 0:00:05]} Bf8 {[%emt 0:01:53]} 20. Nc2 {[%emt 0:00:17]} b5 {[%emt 0:04:07]} 21. a3 {[%emt 0:01:24]} Kf7 {[%emt 0:02:55]} 22. Kf1 {[%emt 0:01:17]} Bh6 {[%emt 0:03:40]} 23. Rxe8 {[%emt 0:09:05]} Rxe8 {[%emt 0:00:44]} 24. a4 {[%emt 0:00:53]} bxa4 {[%emt 0:01:57]} 25. Rxa4 {[%emt 0:00:03]} Bd2 {[%emt 0:06:48]} 26. Ra1 {[%emt 0:01:17]} Bh6 {[%emt 0:08:32]} 27. f3 {[%emt 0:02:36]} Ke6 {[%emt 0:02:55]} 28. Kf2 {[%emt 0:01:45]} Kd7 {[%emt 0:00:53]} 29. Bg3 {[%emt 0:00:14]} Re7 {[%emt 0:02:10]} 30. Rh1 {[%emt 0:01:46]} Bf8 {[%emt 0:00:46]} 31. Bf4 {[%emt 0:03:28]} Nc7 {[%emt 0:03:56]} 32. Bxc7 {[%emt 0:03:45]} Kxc7 {[%emt 0:00:02]} 33. Nb4 {[%emt 0:00:44]} Rf7 {[%emt 0:01:11]} 34. Nd3 {[%emt 0:00:10]} Bd6 {[%emt 0:00:36]} 35. f4 {[%emt 0:10:26]} Kb6 {[%emt 0:06:07]} 36. Kf3 {[%emt 0:00:55]} Kb5 {[%emt 0:01:00]} 37. b3 {[%emt 0:00:11]} c5 {[%emt 0:04:41]} 38. dxc5 {[%emt 0:01:12]} Bxc5 {[%emt 0:00:12]} 39. Ke2 {[%emt 0:10:17]} Re7+ {[%emt 0:00:41]} 40. Kd2 {[%emt 0:00:03]} Be3+ {[%emt 0:03:09]} 41. Kc2 {[%emt 0:00:04]} Bb6 {[%emt 0:00:41]} 42. Rd1 {[%emt 0:02:20]} Re3 {[%emt 0:02:48]} 43. Nb4 {[%emt 0:03:25]} d4 {[%emt 0:02:01]} 44. Nd5 {[%emt 0:00:10]} Rg3 {[%emt 0:02:48]} 45. c4+ {[%emt 0:00:35]} Kc6 {[%emt 0:00:51]} 46. Nxf6 {[%emt 0:00:24]} Rxg2+ {[%emt 0:01:17]} 47. Rd2 {[%emt 0:00:12]} Rg3 {[%emt 0:01:03]} 48. Rd3 {[%emt 0:00:07]} Rg2+ {[%emt 0:00:10]} 49. Rd2 {[%emt 0:00:06]} Rg1 {[%emt 0:00:22]} 50. b4 {[%emt 0:03:58]} h6 {[%emt 0:02:58]} 51. c5 {[%emt 0:02:23]} Bd8 {[%emt 0:00:49]} 52. Rxd4 {[%emt 0:00:20]} Bxf6 {[%emt 0:00:04]} 53. Rd6+ {[%emt 0:00:05]} Kc7 {[%emt 0:00:11]} 54. Rxf6 {[%emt 0:00:06]} Rxg4 {[%emt 0:00:04]} 55. b5 {[%emt 0:00:51]} g5 {[%emt 0:04:24]} 56. Rxh6 {[%emt 0:00:25]} Rxf4 {[%emt 0:00:27]} 57. Rh7+ {[%emt 0:00:11]} Kc8 {[%emt 0:02:22]} 58. Kc3 {[%emt 0:00:07]} b6 {[%emt 0:10:39]} 59. c6 {[%emt 0:00:41]} Rf5 {[%emt 0:01:12]} 60. Kc4 {[%emt 0:00:10]} Rc5+ {[%emt 0:00:06]} 61. Kb4 {[%emt 0:00:09]} Rf5 {[%emt 0:01:15]} 62. Kc4 {[%emt 0:01:10]} Rc5+ {[%emt 0:00:23]} 63. Kb4 {[%emt 0:00:01]} Rf5 {[%emt 0:00:02]} 64. Rg7 {[%emt 0:00:11]} Rf4+ {[%emt 0:00:17]} 65. Kc3 {[%emt 0:00:02]} Rf5 {[%emt 0:00:06]} 66. Kc4 {[%emt 0:00:24]} Rc5+ {[%emt 0:00:06]} 67. Kb4 {[%emt 0:00:06]} Rf5 {[%emt 0:00:04]} 68. Rg8+ {[%emt 0:03:00]} Kc7 {[%emt 0:00:01]} 69. Rg7+ {[%emt 0:00:01]} Kc8 {[%emt 0:00:00]} 70. Rd7 {[%emt 0:01:10]} Rf4+ {[%emt 0:01:41]} 71. Kc3 {[%emt 0:00:02]} Rf5 {[%emt 0:00:14]} 72. Kc4 {[%emt 0:00:07]} Rc5+ {[%emt 0:00:05]} 73. Kb4 {[%emt 0:00:04]} Rf5 {[%emt 0:00:07]} 74. Rd4 {[%emt 0:00:23]} Rf7 {[%emt 0:04:16]} 75. Kc4 {[%emt 0:00:54]} Kc7 {[%emt 0:00:45]} 76. Kd3 {[%emt 0:00:32]} Rf5 {[%emt 0:00:52]} 77. Kc4 {[%emt 0:04:09]} Rf7 {[%emt 0:00:07]} 78. Kd3 {[%emt 0:00:00]} Rf5 {[%emt 0:00:02]} 79. Rd7+ {[%emt 0:00:00]} Kc8 {[%emt 0:00:06]} 80. Kc4 {[%emt 0:00:00]} Rc5+ {[%emt 0:01:15]} 81. Kb4 {[%emt 0:00:00]} Rf5 {[%emt 0:00:12]} 82. Rd4 {[%emt 0:00:00]} Rf7 {[%emt 0:01:04]} 83. Rg4 {[%emt 0:00:00]} Rf5 {[%emt 0:00:10]} 84. Re4 {[%emt 0:00:00]} Rf7 {[%emt 0:00:16]} 85. Re8+ {[%emt 0:00:00]} Kc7 {[%emt 0:00:01]} 86. Kc4 {[%emt 0:00:20]} Rf5 {[%emt 0:00:37]} 87. Re7+ {[%emt 0:00:32]} Kc8 {[%emt 0:00:15]} 88. Re6 {[%emt 0:00:20]} Rc5+ {[%emt 0:00:23]} 89. Kb4 {[%emt 0:00:03]} Rf5 {[%emt 0:00:40]} 90. Re7 {[%emt 0:00:26]} Rf4+ {[%emt 0:00:27]} 91. Kc3 {[%emt 0:00:08]} Rf5 {[%emt 0:00:05]} 92. Kc4 {[%emt 0:05:41]} 1/2-1/2

[Event "Charlotte IM-C MLK 2022"]
[Site "Charlotte"]
[Date "2022.01.14"]
[Round "1.4"]
[White "Andrianov, Nikolay"]
[Black "Jochem, Alessandro Gil P. da"]
[Result "1/2-1/2"]
[ECO "E62"]
[WhiteElo "1816"]
[BlackElo "1941"]
[Annotator "RC"]
[PlyCount "35"]
[EventDate "2022.01.13"]
[EventType "tourn"]
[EventCountry "USA"]
[SourceTitle "playchess.com"]
[Source "ChessBase"]
[SourceQuality "1"]
[TimeControl "5400+30"]

1. d4 {[%emt 0:00:04]} Nf6 {[%emt 0:00:14]} 2. Nf3 {[%emt 0:00:11]} d6 {[%emt 0:00:04]} 3. g3 {[%emt 0:03:27]} g6 {[%emt 0:05:32]} 4. Bg2 {[%emt 0:00:40]} Bg7 {[%emt 0:00:02]} 5. O-O {[%emt 0:00:37]} O-O {[%emt 0:00:06]} 6. c4 {[%emt 0:01:04]} c6 {[%emt 0:00:21]} 7. Nc3 {[%emt 0:01:09]} Qb6 {[%emt 0:00:18]} 8. c5 {[%emt 0:05:56]} dxc5 {[%emt 0:01:15]} 9. Na4 {[%emt 0:00:06]} Qb5 {[%emt 0:00:08]} 10. Nxc5 {[%emt 0:00:37]} Na6 {[%emt 0:00:12]} 11. a4 {[%emt 0:04:20]} Qb6 {[%emt 0:02:27]} 12. a5 {[%emt 0:14:02]} Qb5 {[%emt 0:00:15]} 13. Nxa6 {[%emt 0:01:23]} Qxa6 {[%emt 0:00:05]} 14. Re1 {[%emt 0:00:51]} Bf5 {[%emt 0:04:26]} 15. Ne5 {[%emt 0:10:29]} Rad8 {[%emt 0:06:02]} 16. e4 {[%emt 0:02:13]} Be6 {[%emt 0:00:06]} 17. Qa4 {[%emt 0:05:42]} Ng4 {[%emt 0:09:14]} 18. Nxg4 {[%emt 0:46:39]} 1/2-1/2

[Event "Charlotte IM-C MLK 2022"]
[Site "Charlotte"]
[Date "2022.01.14"]
[Round "1.5"]
[White "Boehme, Sebastian"]
[Black "Martin Del Campo Cardenas, Roberto Abel"]
[Result "1/2-1/2"]
[ECO "A44"]
[WhiteElo "2170"]
[BlackElo "2261"]
[Annotator "ChessBase"]
[PlyCount "84"]
[EventDate "2022.01.13"]
[EventType "tourn"]
[EventCountry "USA"]
[SourceTitle "playchess.com"]
[Source "ChessBase"]
[SourceQuality "1"]
[TimeControl "5400+30"]

1. d4 {[%emt 0:00:04]} c5 {[%emt 0:02:24]} 2. d5 {[%emt 0:00:17]} e5 {[%emt 0:01:11]} 3. Nc3 {[%emt 0:00:47]} d6 {[%emt 0:00:50]} 4. e4 {[%emt 0:00:13]} Be7 {[%emt 0:00:55]} 5. Nf3 {[%emt 0:01:03]} a6 {[%emt 0:04:05]} 6. a4 {[%emt 0:00:26]} Bg4 {[%emt 0:00:10]} 7. h3 {[%emt 0:03:07]} Bxf3 {[%emt 0:03:26]} 8. Qxf3 {[%emt 0:00:07]} Bg5 {[%emt 0:01:30]} 9. Bxg5 {[%emt 0:03:16]} Qxg5 {[%emt 0:00:30]} 10. Qg4 {[%emt 0:00:15]} Qxg4 {[%emt 0:03:04]} 11. hxg4 {[%emt 0:00:02]} Nd7 {[%emt 0:07:01]} 12. Nd1 {[%emt 0:04:03]} Ngf6 {[%emt 0:05:14]} 13. f3 {[%emt 0:01:19]} g6 {[%emt 0:00:38]} 14. Ne3 {[%emt 0:03:57]} Ke7 {[%emt 0:08:13]} 15. Kf2 {[%emt 0:11:35]} Ne8 {[%emt 0:20:40]} 16. Bd3 {[%emt 0:05:13]} Nc7 {[%emt 0:01:56]} 17. c3 {[%emt 0:08:41]} b5 {[%emt 0:07:36]} 18. b3 {[%emt 0:22:23]} c4 {[%emt 0:03:45]} 19. bxc4 {[%emt 0:00:42]} bxa4 {[%emt 0:00:09]} 20. Bc2 {[%emt 0:04:33]} Nc5 {[%emt 0:01:24]} 21. Bxa4 {[%emt 0:03:53]} Rab8 {[%emt 0:00:22]} 22. g5 {[%emt 0:01:33]} f6 {[%emt 0:08:08]} 23. gxf6+ {[%emt 0:03:27]} Kxf6 {[%emt 0:00:04]} 24. Ra2 {[%emt 0:03:56]} h5 {[%emt 0:01:34]} 25. Nc2 {[%emt 0:01:06]} Nxa4 {[%emt 0:01:25]} 26. Rxa4 {[%emt 0:00:01]} Rb2 {[%emt 0:00:02]} 27. Rc1 {[%emt 0:00:13]} Rhb8 {[%emt 0:02:00]} 28. Ke3 {[%emt 0:00:51]} R8b6 {[%emt 0:00:30]} 29. Kd3 {[%emt 0:03:03]} h4 {[%emt 0:05:31]} 30. Ra5 {[%emt 0:15:24]} R6b3 {[%emt 0:00:36]} 31. c5 {[%emt 0:00:00]} Nb5 {[%emt 0:00:49]} 32. Na1 {[%emt 0:00:00]} Ra3 {[%emt 0:01:19]} 33. Rxa3 {[%emt 0:00:00]} Nxa3 {[%emt 0:00:03]} 34. cxd6 {[%emt 0:00:00]} Rxg2 {[%emt 0:00:07]} 35. c4 {[%emt 0:00:00]} h3 {[%emt 0:00:36]} 36. f4 {[%emt 0:00:00]} h2 {[%emt 0:01:44]} 37. fxe5+ {[%emt 0:00:00]} Kxe5 {[%emt 0:00:04]} 38. d7 {[%emt 0:00:00]} Rg3+ {[%emt 0:01:14]} 39. Ke2 {[%emt 0:00:00]} Rg2+ {[%emt 0:00:49]} 40. Kd3 {[%emt 0:01:56]} Rg3+ {[%emt 0:00:09]} 41. Ke2 {[%emt 0:02:36]} Rg2+ {[%emt 0:00:04]} 42. Kd3 {[%emt 0:01:28]} Rg3+ 1/2-1/2

[Event "Charlotte IM-C MLK 2022"]
[Site "Charlotte"]
[Date "2022.01.15"]
[Round "4.2"]
[White "Wu, Derek"]
[Black "Martin Del Campo Cardenas, Roberto Abel"]
[Result "0-1"]
[ECO "B60"]
[WhiteElo "2158"]
[BlackElo "2261"]
[Annotator "ChessBase"]
[PlyCount "66"]
[EventDate "2022.01.13"]
[EventType "tourn"]
[EventCountry "USA"]
[SourceTitle "playchess.com"]
[Source "ChessBase"]
[SourceQuality "1"]
[TimeControl "5400+30"]

1. e4 {[%emt 0:00:04]} c5 {[%emt 0:00:14]} 2. Nf3 {[%emt 0:00:04]} d6 {[%emt 0:00:58]} 3. d4 {[%emt 0:00:06]} cxd4 {[%emt 0:00:06]} 4. Nxd4 {[%emt 0:00:03]} Nf6 {[%emt 0:00:56]} 5. Nc3 {[%emt 0:00:04]} Nc6 {[%emt 0:03:20]} 6. Bg5 {[%emt 0:00:13]} a6 {[%emt 0:00:26]} 7. Bxf6 {[%emt 0:03:44]} gxf6 {[%emt 0:00:45]} 8. Bc4 {[%emt 0:01:43]} e6 {[%emt 0:07:21]} 9. Nxc6 {[%emt 0:06:54]} bxc6 {[%emt 0:00:17]} 10. Qd4 {[%emt 0:04:49]} Rb8 {[%emt 0:14:10]} 11. Bb3 {[%emt 0:00:50]} Be7 {[%emt 0:04:55]} 12. O-O-O {[%emt 0:07:40]} O-O {[%emt 0:01:57]} 13. Qe3 {[%emt 0:03:39]} Kh8 {[%emt 0:01:02]} 14. Rd3 {[%emt 0:02:24]} Rg8 {[%emt 0:01:32]} 15. Ne2 {[%emt 0:08:29]} Qb6 {[%emt 0:02:16]} 16. Qf4 {[%emt 0:05:51]} a5 {[%emt 0:03:52]} 17. e5 {[%emt 0:09:05]} dxe5 {[%emt 0:08:38]} 18. Qh4 {[%emt 0:00:55]} Qb4 {[%emt 0:00:59]} 19. c4 {[%emt 0:08:08]} a4 {[%emt 0:02:44]} 20. a3 {[%emt 0:01:51]} Qb7 {[%emt 0:00:45]} 21. Bc2 {[%emt 0:02:30]} f5 {[%emt 0:01:39]} 22. Qh5 {[%emt 0:00:20]} e4 {[%emt 0:01:48]} 23. Rd2 {[%emt 0:04:55]} Bg5 {[%emt 0:01:59]} 24. f4 {[%emt 0:02:10]} exf3 {[%emt 0:00:08]} 25. gxf3 {[%emt 0:01:08]} Qxb2+ {[%emt 0:01:19]} 26. Kd1 {[%emt 0:00:02]} Bxd2 {[%emt 0:00:04]} 27. Kxd2 {[%emt 0:01:08]} Rb7 {[%emt 0:08:26]} 28. Qh4 {[%emt 0:02:41]} Rd7+ {[%emt 0:02:25]} 29. Ke3 {[%emt 0:00:23]} Qe5+ {[%emt 0:07:16]} 30. Kf2 {[%emt 0:00:04]} Rd2 {[%emt 0:00:20]} 31. Bd1 {[%emt 0:00:18]} f4 {[%emt 0:00:50]} 32. Re1 {[%emt 0:00:57]} Qe3+ {[%emt 0:00:31]} 33. Kf1 {[%emt 0:00:12]} Qxf3+ {[%emt 0:00:17]} 0-1

[Event "Charlotte IM-C MLK 2022"]
[Site "Charlotte"]
[Date "2022.01.15"]
[Round "4.3"]
[White "Adewumi, Tanitoluwa"]
[Black "Boehme, Sebastian"]
[Result "0-1"]
[ECO "D02"]
[WhiteElo "2136"]
[BlackElo "2170"]
[Annotator "ChessBase"]
[PlyCount "76"]
[EventDate "2022.01.13"]
[EventType "tourn"]
[EventCountry "USA"]
[SourceTitle "playchess.com"]
[Source "ChessBase"]
[SourceQuality "1"]
[TimeControl "5400+30"]

1. d4 {[%emt 0:00:04]} e6 {[%emt 0:00:26]} 2. Bf4 {[%emt 0:00:13]} Nf6 {[%emt 0:00:35]} 3. Nf3 {[%emt 0:00:05]} d5 {[%emt 0:00:25]} 4. e3 {[%emt 0:00:09]} c5 {[%emt 0:00:14]} 5. c3 {[%emt 0:00:27]} Nc6 {[%emt 0:00:28]} 6. Nbd2 {[%emt 0:00:10]} cxd4 {[%emt 0:00:53]} 7. exd4 {[%emt 0:00:07]} Nh5 {[%emt 0:00:09]} 8. Be5 {[%emt 0:00:16]} f6 {[%emt 0:04:21]} 9. Nh4 {[%emt 0:00:01]} g6 {[%emt 0:01:42]} 10. Bg3 {[%emt 0:00:01]} Bg7 {[%emt 0:05:38]} 11. Bd3 {[%emt 0:03:02]} Nxg3 {[%emt 0:05:32]} 12. hxg3 {[%emt 0:00:07]} Bd7 {[%emt 0:02:18]} 13. Qe2 {[%emt 0:01:42]} Qc7 {[%emt 0:02:51]} 14. b4 {[%emt 0:01:05]} O-O-O {[%emt 0:05:50]} 15. b5 {[%emt 0:04:57]} Na5 {[%emt 0:00:46]} 16. Rc1 {[%emt 0:02:49]} e5 {[%emt 0:03:17]} 17. dxe5 {[%emt 0:06:19]} fxe5 {[%emt 0:01:46]} 18. g4 {[%emt 0:02:04]} e4 {[%emt 0:02:05]} 19. Bb1 {[%emt 0:00:26]} Rde8 {[%emt 0:12:46]} 20. Kd1 {[%emt 0:12:43]} Kb8 {[%emt 0:08:32]} 21. a4 {[%emt 0:10:38]} Qc8 {[%emt 0:00:46]} 22. f3 {[%emt 0:06:27]} exf3 {[%emt 0:00:53]} 23. Qf2 {[%emt 0:00:16]} fxg2 {[%emt 0:01:25]} 24. Qxg2 {[%emt 0:00:14]} Bxg4+ {[%emt 0:00:46]} 25. Nhf3 {[%emt 0:00:07]} Re3 {[%emt 0:02:05]} 26. Rh4 {[%emt 0:00:16]} h5 {[%emt 0:01:01]} 27. Bxg6 {[%emt 0:00:56]} Nb3 {[%emt 0:02:33]} 28. Bxh5 {[%emt 0:00:48]} Bxh5 {[%emt 0:02:34]} 29. Rxh5 {[%emt 0:01:55]} Nxc1 {[%emt 0:01:36]} 30. Qh2+ {[%emt 0:00:56]} Ka8 {[%emt 0:00:24]} 31. Rxh8 {[%emt 0:46:40]} Bxh8 {[%emt 0:01:15]} 32. c4 {[%emt 0:00:00]} dxc4 {[%emt 0:01:22]} 33. Kxc1 {[%emt 0:00:00]} c3 {[%emt 0:00:19]} 34. Nc4 {[%emt 0:00:00]} Rxf3 {[%emt 0:00:37]} 35. a5 {[%emt 0:00:00]} Rf1+ {[%emt 0:00:37]} 36. Kc2 {[%emt 0:00:00]} Qf5+ {[%emt 0:00:22]} 37. Kb3 {[%emt 0:00:00]} Qxb5+ {[%emt 0:00:05]} 38. Kc2 {[%emt 0:00:00]} Qb1# {[%emt 0:01:01]} 0-1

[Event "Charlotte IM-C MLK 2022"]
[Site "Charlotte"]
[Date "2022.01.15"]
[Round "4.4"]
[White "Vanapalli, Vishnu"]
[Black "Andrianov, Nikolay"]
[Result "1/2-1/2"]
[ECO "B36"]
[WhiteElo "2101"]
[BlackElo "1816"]
[Annotator "ChessBase"]
[PlyCount "69"]
[EventDate "2022.01.13"]
[EventType "tourn"]
[EventCountry "USA"]
[SourceTitle "playchess.com"]
[Source "ChessBase"]
[SourceQuality "1"]
[TimeControl "5400+30"]

1. e4 {[%emt 0:00:13]} c5 {[%emt 0:00:01]} 2. Nf3 {[%emt 0:00:15]} g6 {[%emt 0:00:27]} 3. c4 {[%emt 0:00:23]} Nc6 {[%emt 0:01:12]} 4. d4 {[%emt 0:00:21]} cxd4 {[%emt 0:00:05]} 5. Nxd4 {[%emt 0:00:09]} Nf6 {[%emt 0:00:05]} 6. Nc3 {[%emt 0:00:21]} d6 {[%emt 0:00:05]} 7. f3 {[%emt 0:00:26]} Nxd4 {[%emt 0:03:23]} 8. Qxd4 {[%emt 0:01:39]} Bg7 {[%emt 0:00:07]} 9. Be3 {[%emt 0:00:26]} O-O {[%emt 0:00:27]} 10. Qd2 {[%emt 0:00:18]} Be6 {[%emt 0:01:37]} 11. Rc1 {[%emt 0:01:42]} Qa5 {[%emt 0:04:53]} 12. Be2 {[%emt 0:01:31]} Rfc8 {[%emt 0:00:15]} 13. b3 {[%emt 0:00:32]} a6 {[%emt 0:00:16]} 14. Na4 {[%emt 0:01:41]} Qxd2+ {[%emt 0:00:28]} 15. Kxd2 {[%emt 0:00:39]} Nd7 {[%emt 0:00:17]} 16. g4 {[%emt 0:01:42]} f5 {[%emt 0:01:12]} 17. exf5 {[%emt 0:04:13]} gxf5 {[%emt 0:00:33]} 18. h3 {[%emt 0:02:09]} Rf8 {[%emt 0:00:39]} 19. Nc3 {[%emt 0:05:51]} f4 {[%emt 0:05:47]} 20. Bf2 {[%emt 0:01:26]} b5 {[%emt 0:00:23]} 21. Nd5 {[%emt 0:02:04]} Bxd5 {[%emt 0:05:54]} 22. cxd5 {[%emt 0:00:15]} Nf6 {[%emt 0:00:05]} 23. Bd3 {[%emt 0:01:37]} Nxd5 {[%emt 0:00:17]} 24. Be4 {[%emt 0:01:07]} e6 {[%emt 0:00:26]} 25. Bxd5 {[%emt 0:03:27]} exd5 {[%emt 0:00:21]} 26. Rc7 {[%emt 0:26:31]} b4 {[%emt 0:20:32]} 27. Rhc1 {[%emt 0:11:01]} a5 {[%emt 0:02:41]} 28. Rb7 {[%emt 0:04:07]} Rfc8 {[%emt 0:14:50]} 29. Rxc8+ {[%emt 0:08:06]} Rxc8 {[%emt 0:00:19]} 30. Rb5 {[%emt 0:00:33]} Rc3 {[%emt 0:04:19]} 31. Rxa5 {[%emt 0:04:47]} Rxf3 {[%emt 0:00:18]} 32. Ke2 {[%emt 0:00:28]} Rxh3 {[%emt 0:03:57]} 33. Rxd5 {[%emt 0:00:16]} Be5 {[%emt 0:01:44]} 34. Rb5 {[%emt 0:08:00]} Rc3 {[%emt 0:02:50]} 35. Rxb4 {[%emt 0:00:45]} 1/2-1/2